Cogmind - Beta 14 @@@ ROGUE MODE // 2024.10.26 @ 15:58:29 Player: Udabudha Result: Destroyed by G-47 Trooper with Particle Gun Performance ------------- Evolutions (2) 1000 Regions Visited (4) 800 Robots Destroyed (25) 125 Value Destroyed (858) 858 Prototype IDs (0) 0 Alien Tech Used (0) 0 Bonus (169) 169 TOTAL SCORE: 2952 Bonus ------- High Alert Combat Kills 8 Follower Combat Kills 277 Friendly Fire -116 Cogmind --------- Core Integrity 0/550 Matter 270/300 Energy 100/100 System Corruption 0% Temperature Cool (9) Movement Core (150) Ox2 Location -8/Materials Parts ------- > --- POWER (1) -------- (None) > --- PROPULSION (4) --- (None) > --- UTILITY (3) ------ Small Storage Unit Signal Interpreter > --- WEAPON (3) ------- Katana > --- INVENTORY (8) ---- Light Ion Engine Recoil Stabilizer Hacking Suite Peak State ------------ > --- POWER ------------ Light Nuclear Core > --- PROPULSION ------- Aluminum Leg Aluminum Leg Aluminum Leg Carbon-fiber Leg > --- UTILITY ---------- Small Storage Unit Signal Interpreter ECM Suite > --- WEAPON ----------- Field Laser Heavy Laser Gauss Rifle > --- INVENTORY -------- Light Ion Engine Aluminum Leg Carbon-fiber Leg Improved Heat Sink Recoil Stabilizer Hacking Suite Heavy Assault Rifle [Rating: 24] Favorites ----------- Power Light Nuclear Core Engine Ion Engine Power Core Light Nuclear Core Propulsion Aluminum Leg Treads Light Treads Leg Aluminum Leg Utility Small Storage Unit Device ECM Suite Storage Small Storage Unit Processor Signal Interpreter Protection Medium Armor Plating Weapon Particle Gun Energy Gun Particle Gun Ballistic Gun Light Assault Rifle Slashing Weapon Katana Build | -11 -10 -9 -9 -8 ------- Run | Yrd Mat Mat Sto Mat Slots Evolved 4 | . . 2 . 2 Power . | . . . . . Propulsion 2 | . . 2 . . Utility 1 | . . . . 1 Weapon 1 | . . . . 1 Parts Attached 36 | 7 9 2 4 14 Power 3 | 1 1 . . 1 Engine 1 | 1 . . . . Core 2 | . 1 . . 1 Reactor . | . . . . . Propulsion 14 | 3 2 2 3 4 Treads 1 | 1 . . . . Leg 13 | 2 2 2 3 4 Wheel . | . . . . . Hover . | . . . . . Flight . | . . . . . Utility 5 | 1 1 . . 3 Device 2 | . 1 . . 1 Storage 1 | 1 . . . . Processor 1 | . . . . 1 Hackware . | . . . . . Protection 1 | . . . . 1 Artifact . | . . . . . Weapon 14 | 2 5 . 1 6 Energy Gun 8 | 1 4 . 1 2 Energy Cannon . | . . . . . Ballistic Gun 5 | 1 1 . . 3 Ballistic Cannon . | . . . . . Launcher . | . . . . . Special Weapon . | . . . . . Impact Weapon . | . . . . . Slashing Weapon 1 | . . . . 1 Piercing Weapon . | . . . . . Special Melee Weapon . | . . . . . Unidentified Prototypes . | . . . . . Parts Lost 16 | . 1 . . 15 Power 1 | . . . . 1 Propulsion 6 | . . . . 6 Utility 3 | . . . . 3 Weapon 6 | . 1 . . 5 Highest Loss Streak 11 | . 1 . . 11 To Critical Strikes . | . . . . . Average Slot Usage (%) 95 | . 93 97 100 92 Engine 2 | . 12 . . . Core 7 | . 1 11 11 8 Leg 35 | . 28 41 44 32 Device 9 | . 8 11 11 8 Storage 10 | . 14 11 11 9 Processor 1 | . . . . 4 Protection 1 | . . . . 3 Energy Gun 17 | . 18 11 18 15 Ballistic Gun 7 | . 8 11 4 8 Peak Build Rating 24 | 6 10 12 14 24 Average Rating 14 | 3 7 11 13 20 On Entrance 8 | . 6 10 12 14 Naked Turns . | . . . . . Heaviest Build 29 | 12 17 16 18 29 Greatest Support 50 | 20 20 40 40 50 Greatest Overweight (x) 1 | . . . . 1 Average Overweight (x) . | . . . . . Largest Inventory Capacity 8 | 8 8 8 8 8 Average Capacity 7 | 6 8 8 8 8 Most Carried 8 | 5 8 7 8 8 Average Carried 7 | 4 7 6 7 7 Final Capacity 8 | 8 8 8 8 8 Final Carried 8 | 5 8 7 8 3 Class Distribution -------------------- 34% | Scavenger-Mutant 24% | Mutant 19% | Scavenger-Gunner 12% | Scavenger-Tank 8% | Commander-Mutant Dominant Class ---------------- Mutant | -10/Materials Scavenger-Mutant | -9/Materials Scavenger-Mutant | -9/Storage Scavenger-Gunner | -8/Materials Resources | -11 -10 -9 -9 -8 ----------- Run | Yrd Mat Mat Sto Mat Matter Collected 632 | 263 107 10 62 190 Remotely . | . . . . . Salvage Created 1004 | . 278 10 185 531 Parts 49 | . 16 1 17 15 Haulers Intercepted . | . . . . . Recyclers Shooed 1 | . 1 . . . Parts Field Recycled . | . . . . . Retrieved Matter . | . . . . . Parts Self-Destructed . | . . . . . Prevented . | . . . . . Kills | -11 -10 -9 -9 -8 ------- Run | Yrd Mat Mat Sto Mat Combat Hostiles Destroyed 22 | . 8 . 4 10 Guns 21 | . 7 . 4 10 AOE 1 | . 1 . . . Classes Destroyed 7 | . 2 1 1 3 Operator 1 | . . . 1 . Watcher 1 | . . 1 . . Swarmer 4 | . 3 . 1 . Grunt 15 | . 5 . 4 6 Brawler 1 | . . . . 1 Duelist 1 | . . . . 1 Hunter 2 | . . . . 2 Best Kill Streak 5 | . 5 1 2 4 Combat Bots Only 5 | . 5 . 2 4 Max Kills in Single Turn 2 | . 1 1 2 1 Gunslinging . | . . . . . Exploded 1 | . 1 . . . Melee . | . . . . . Uniques/NPCs Destroyed . | . . . . . Combat | -11 -10 -9 -9 -8 -------- Run | Yrd Mat Mat Sto Mat Hostile Shots Fired 196 | . 47 . 30 119 Missed 52 | . 13 . 10 29 Damage Taken 2474 | . 424 . 268 1782 Core 699 | . 83 . 66 550 Absorbed by Shields . | . . . . . Core Remaining (%) 83 | 100 66 . 83 . Volleys Fired 84 | . 23 2 19 40 Largest 3 | . 2 2 2 3 Hottest 160 | . 115 85 110 160 Shots Fired 185 | . 46 4 35 100 Gun 185 | . 46 4 35 100 Cannon . | . . . . . Launcher . | . . . . . Special . | . . . . . Kinetic 63 | . 10 2 12 39 Thermal 105 | . 30 2 16 57 Explosive . | . . . . . Electromagnetic 17 | . 6 . 7 4 Robot Hit Streak 11 | . 8 4 4 11 Robot Miss Streak 4 | . 4 . 3 4 Penetration Max . | . . . . . Secondary Targets 6 | . 2 . 2 2 Max Gunslinging Chain 1 | . 1 . 1 1 Shots Hit Robots 118 | . 29 3 19 67 Core Hits 48 | . 15 1 9 23 Critical Kills . | . . . . . Critical Parts Destroyed 1 | . . . 1 . Critical Strikes 2 | . . . 1 1 Burn 1 | . . . . 1 Destroy 1 | . . . 1 . Melee Attacks 5 | . . . . 5 Impact . | . . . . . Slashing 5 | . . . . 5 Piercing . | . . . . . Sneak Attacks . | . . . . . Combat Hostiles . | . . . . . Follow-up Attacks . | . . . . . Damage Inflicted 1899 | . 420 39 286 1154 Guns 1767 | . 343 39 282 1103 Cannons . | . . . . . Explosions 69 | . 69 . . . Melee 49 | . . . . 49 Ramming 14 | . 8 . 4 2 Kinetic 579 | . 46 8 55 470 Thermal 1099 | . 310 31 161 597 Explosive . | . . . . . Electromagnetic 158 | . 56 . 66 36 Impact . | . . . . . Slashing 49 | . . . . 49 Piercing . | . . . . . Highest Corruption . | . . . . . Average Corruption . | . . . . . Corruption Purged . | . . . . . Corruption Blocked . | . . . . . Overload Shots . | . . . . . Overflow Damage . | . . . . . Projectiles . | . . . . . Explosions . | . . . . . Melee . | . . . . . Knockbacks . | . . . . . Impact . | . . . . . Kinetic . | . . . . . Secondary . | . . . . . Self-Inflicted Damage 24 | . 24 . . . Shots 1 | . 1 . . . Rammed . | . . . . . Targets Rammed 4 | . 1 . 1 2 Kicked 4 | . 1 . 1 2 Crushed . | . . . . . Highest Temperature 457 | . 457 63 165 420 Average Temperature 122 | . 151 33 52 136 Received Heat Transfer 780 | . 180 . 87 513 Effects 3 | . . . . 3 Shutdowns 1 | . . . . 1 Interference 2 | . . . . 2 Siege Activations . | . . . . . Robots Corrupted . | . . . . . Combat Hostiles . | . . . . . Parts Fried . | . . . . . Impact Corruptions . | . . . . . Robots Melted . | . . . . . Combat Hostiles . | . . . . . Parts Melted 4 | . 2 . . 2 Heat Transferred 2470 | . 657 74 370 1369 Parts Sabotaged . | . . . . . Parts Stolen . | . . . . . Parts Stripped . | . . . . . Power Chain Reactions 1 | . 1 . . . Alert | -11 -10 -9 -9 -8 ------- Run | Yrd Mat Mat Sto Mat Peak Influence 587 | . 233 105 587 359 Initial 163 | . . 98 44 163 Average 204 | . 81 101 302 230 Maximum Alert Level 2 | . 1 . 2 1 Low Security (%) 51 | 100 82 100 33 39 Level 1 38 | . 17 . 35 60 Level 2 9 | . . . 31 . Level 3 . | . . . . . Level 4 . | . . . . . Level 5 . | . . . . . High Security . | . . . . . Max Security . | . . . . . Squads Dispatched 8 | . . . 2 6 Investigation 1 | . . . 1 . Extermination . | . . . . . Reinforcement 4 | . . . 1 3 Assault . | . . . . . Garrison 3 | . . . . 3 Intercept . | . . . . . Searches Triggered . | . . . . . Construction Impeded . | . . . . . Haulers Reinforced . | . . . . . Active Scanning Responses . | . . . . . Cargo Convoy Interrupts . | . . . . . Stealth | -11 -10 -9 -9 -8 --------- Run | Yrd Mat Mat Sto Mat Distress Signals 11 | . 1 1 3 6 Communications Jammed . | . . . . . Distress Signals . | . . . . . Times Spotted 75 | . 11 1 23 40 Peak Tracking Total 8 | . 5 2 5 8 Tactical Retreats 12 | . 2 1 2 7 Traps | -11 -10 -9 -9 -8 ------- Run | Yrd Mat Mat Sto Mat Traps Triggered 2 | . 1 . 1 . Indirectly . | . . . . . Trap Hack Attempts . | . . . . . Triggered . | . . . . . Disarmed . | . . . . . Reprogrammed . | . . . . . Reused . | . . . . . Traps Extracted . | . . . . . Installed . | . . . . . Triggered . | . . . . . Machines | -11 -10 -9 -9 -8 ---------- Run | Yrd Mat Mat Sto Mat Machines Disabled 1 | . . . . 1 Max in Single Turn 1 | . . . . 1 Garrison Access 1 | . . . 1 . Machines Repaired . | . . . . . Machines Dismantled . | . . . . . Machines Sabotaged . | . . . . . Overloaded Fab Kills . | . . . . . Hacking | -11 -10 -9 -9 -8 --------- Run | Yrd Mat Mat Sto Mat Machines Accessed 6 | . 2 . 3 1 Terminals 5 | . 2 . 2 1 Fabricators . | . . . . . Repair Stations . | . . . . . Recycling Units . | . . . . . Scanalyzers . | . . . . . Garrison Access 1 | . . . 1 . Total Hacks 13 | . 5 . 5 3 Successful 11 | . 5 . 3 3 Failed 2 | . . . 2 . Catastrophic 1 | . . . 1 . Database Lockouts . | . . . . . Manual . | . . . . . Terminals 12 | . 5 . 4 3 Fabricators . | . . . . . Repair Stations . | . . . . . Recycling Units . | . . . . . Scanalyzers . | . . . . . Garrison Access 1 | . . . 1 . Terminal Hacks 10 | . 5 . 2 3 Record 3 | . 3 . . . Part Schematic 1 | . . . 1 . Open Door 1 | . . . 1 . Emergency Access Points 1 | . . . . 1 Alert Level 1 | . 1 . . . Locate Traps 1 | . . . . 1 Dispatch Records 1 | . . . . 1 Zone Layout 1 | . 1 . . . Fabricator Hacks . | . . . . . Repair Station Hacks . | . . . . . Recycling Unit Hacks . | . . . . . Scanalyzer . | . . . . . Garrison Access Hacks 1 | . . . 1 . Seal Access 1 | . . . 1 . Unauthorized Hacks . | . . . . . Terminals . | . . . . . Fabricators . | . . . . . Repair Stations . | . . . . . Recycling Units . | . . . . . Scanalyzers . | . . . . . Garrison Access . | . . . . . Data Cores Recovered 1 | . . . 1 . Used . | . . . . . Hacking Detections 4 | . 2 . 1 1 Full Trace Events 1 | . 1 . . . Feedback Events . | . . . . . Feedback Blocked . | . . . . . Robot Schematics Acquired . | . . . . . Robots Built . | . . . . . Authchips . | . . . . . Time . | . . . . . Total Robot Build Rating . | . . . . . Part Schematics Acquired 1 | . . . 1 . Parts Built . | . . . . . Authchips . | . . . . . Time . | . . . . . Total Part Build Rating . | . . . . . Parts Repaired . | . . . . . Time . | . . . . . Parts Recycled . | . . . . . Recycled Matter . | . . . . . Retrieved Matter . | . . . . . Retrieved Components . | . . . . . Parts Scanalyzed . | . . . . . Part Schematics Acquired . | . . . . . Parts Damaged . | . . . . . Bothacking | -11 -10 -9 -9 -8 ------------ Run | Yrd Mat Mat Sto Mat Used RIF Installer . | . . . . . Robots Hacked . | . . . . . Non-combat . | . . . . . Combat . | . . . . . Robot Hacks Applied . | . . . . . Relay Couplers Released . | . . . . . Fabnet Peak Effective % . | . . . . . Robots Rewired . | . . . . . Allies Hacked . | . . . . . Hacks Repelled . | . . . . . Allies | -11 -10 -9 -9 -8 -------- Run | Yrd Mat Mat Sto Mat Total Allies 10 | . . . 10 . Largest Group 10 | . . . 10 6 Highest-Rated Group 88 | . . . 88 56 Highest-Rated Ally 16 | . . . 16 16 Total Orders . | . . . . . Ally Attacks 108 | . . . 84 24 Total Damage 947 | . . . 761 186 Kills 15 | . . . 11 4 Allies Corrupted 1 | . . . 1 . Allies Melted . | . . . . . Intel | -11 -10 -9 -9 -8 ------- Run | Yrd Mat Mat Sto Mat Robot Analysis Total . | . . . . . Derelict Logs Recovered . | . . . . . Drone Launches . | . . . . . Drone Recoveries . | . . . . . Exploration | -11 -10 -9 -9 -8 ------------- Run | Yrd Mat Mat Sto Mat Turns Passed 1400 | 70 318 37 439 536 Spaces Moved 828 | 51 179 24 304 270 Core 11 | 11 . . . . Treads 1 | 1 . . . . Legs 816 | 39 179 24 304 270 Wheels . | . . . . . Hover . | . . . . . Flight . | . . . . . Fastest Speed 50 | 50 120 120 120 120 Average Speed 119 | 105 120 120 120 120 Slowest Speed 190 | 160 120 120 120 190 Overloaded Moves . | . . . . . Propulsion Burnouts . | . . . . . Robots Hopped . | . . . . . Cave-ins Triggered . | . . . . . Exploration Rate (%) 23 | 4 39 3 47 22 Regions Visited 4 Branch Regions 1 Pre-discovered Areas . | . . . . . Known Exits Taken . | . . . . . Unknown Exits Taken 4 | 1 1 1 1 . Scrap Searched . | . . . . . Spaces Dug . | . . . . . Terrain Destroyed 6 | . 5 . . 1 Melee . | . . . . . Projectile 1 | . . . . 1 AOE 5 | . 5 . . . Terrain Rammed . | . . . . . Walls Destroyed . | . . . . . Machines Disabled . | . . . . . Actions | -11 -10 -9 -9 -8 --------- Run | Yrd Mat Mat Sto Mat Total 1077 | 64 240 28 350 395 Wait 76 | . 16 . 5 55 Move 824 | 50 178 23 303 270 Hop . | . . . . . Pick Up 25 | 6 6 1 7 5 Fast Attach 10 | 6 3 . 1 . Attach 15 | 1 2 2 . 10 Detach . | . . . . . Swap 11 | . 4 . 3 4 Drop 22 | 1 7 . 10 4 Fire 84 | . 23 2 19 40 Melee 5 | . . . . 5 Ram . | . . . . . Kick 4 | . 1 . 1 2 Crush . | . . . . . Escape Stasis . | . . . . . Rewire 1 | . . . 1 . Trap . | . . . . . Miscellaneous . | . . . . . Route ------- -11/Scrapyard -10/Materials -9/Materials -9/Storage -8/Materials History --------- Turn | Location | Event 11 | -11/Scrapyard | Discovered new exit (range 15) 71 | -11/Scrapyard | Entered Materials 302 | -10/Materials | Build established: Mutant 366 | -10/Materials | Discovered new exit (range 15) 389 | -10/Materials | Entered another Materials area 389 | -9/Materials | Evolved 2 slots: Propulsion x2 391 | -9/Materials | Discovered new exit (range 15) 426 | -9/Materials | Entered Storage 535 | -9/Storage | Assisted by bots powering up and referring to "LRC-V3" 704 | -9/Storage | Lost 3 allies 840 | -9/Storage | Discovered new exit (range 15) 865 | -9/Storage | Entered Materials 865 | -8/Materials | Accompanied by 6 allies 865 | -8/Materials | Evolved 2 slots: Utility x1, Weapon x1 975 | -8/Materials | Garrison activated, responded to threat 1020 | -8/Materials | Lost 5 allies 1381 | -8/Materials | Core integrity fell below 50% 1392 | -8/Materials | Core integrity fell below 20% 1401 | -8/Materials | Destroyed by G-47 Trooper with Particle Gun Last Messages --------------- Knocked back. K-01 Serf collects debris. Penetrated by Slug. Field Laser destroyed. Knocked back. K-01 Serf collects debris. Penetrated by Slug. Knocked back. Aluminum Leg destroyed. Knocked back. Hvy. Assault Rifle destroyed. Knocked back. Penetrated by Slug. Lgt. Nuclear Core destroyed. Knocked back. Acquired 4 matter. R-06 Scavenger collects Carbon-fiber Leg. Carbon-fiber Leg destroyed. Knocked back. Imp. Heat Sink destroyed. Map ----- +----------------------------------------------------+ | ##### # %+ T #???????????????? | | ^ % # # #???????????????? | | % %# # ###########???????????????? | | # ## ##?????????????????????????? | | ^ # ## #??????????????????????????? | | ^ ############ #??????????????????????????? | | % #########T## #############??????????????? | | """ ?????????????? | | ^ """ ?????????????? | | """ ?????????????? | | ############+##############??????????????? | | ?? #???????# #???????????????????????? | | ???"" [ #???????# #???????????????????????? | | ???"" #???????# #???????????????????????? | | ????" ???????# #???????????????????????? | | ???? #???????# % #???????????????? #?????? | | ????? ????????# #?????????????? ##????? | | ?????#+#????????# !#?????##+##### #????? | | ????????????????# ! || ####### #????? | | ????????????????# | *+% = ""???? | | ????????????????################ """ "" ??????? | | ??????????????????# = # """ T" "????? | | ??????????????????# k"""""g # """ "" #????? | | ??????????????????# """""""" # #????? | | ??????????????????# ""r ggg # ##???? | | ??????????????????# k%@%H% # !! ?? | | ??????????????????##########g### != ?? | | ????????????????????????# " != ?? | | ?????????????????????????#" %#################??? | | ?????????????????????????## #??????????????????? | | ??????????????????????????# %#??????????????????? | | ??????????????????????????# #??????????????????? | | ?????????????????????????? ??????????????????? | | ????????????????????????? #?????????????????? | | ???????????????????????? +?????????????????? | | ??????????????????????? #?????????????????? | | ??????????????????????#### [ #?????????????????? | | ?????????????????????????## ##?????????????????? | | ??????????????????????????# #??????????????????? | | ??????????????????????????# T??????????????????? | | ??????????????????????????# ???????????????????? | | ??????????????????????????# ???????????????????? | | ??????????????????????????? ???????????????????? | | ?????????????????????????????????????????????????? | | ?????????????????????????????????????????????????? | | ?????????????????????????????????????????????????? | | ?????????????????????????????????????????????????? | | ?????????????????????????????????????????????????? | | ?????????????????????????????????????????????????? | | ?????????????????????????????????????????????????? | +----------------------------------------------------+ Best States ------------- Heat Dissipation 45 Energy Generation 14 Energy Capacity 250 Matter Stores 300 Matter Capacity 300 Sight Range 16 Terrain Scan Density 10 ECM Strength 1 Armor Coverage 225 Evasion (%) 55 Item Schematics ----------------- Beam Rifle | -9/Storage | Hacked Robot Schematics ------------------ None Fabricated ------------ Nothing Alien Tech Used ----------------- None Achievements -------------- Backstab The More The Merrier Challenges ------------ None Game ------ Seed NetworkExoskeletonFilter Manual? 0 Play Time 00:20:29 Cumulative 8.8 hours Start 2024.10.26 @ 15:37:06 End 2024.10.26 @ 15:58:29 Sessions 1 Manual Loads 0 Difficulty Rogue Special Mode None Game No. 22 Rogue 19 Adventurer 1 Explorer 2 Win Type - Total 0 Types 0/0/0/0/0/0/0/0/0 Lore% 9 Gallery% 17 Achievement% 17 Wizard Run 0 Options --------- Layout 1 ASCII 0 Keyboard 0 Movement Numpad Keybinds 0 Fullscreen 1 Font 48/Smallcaps Map View 50x35 Zoom Use 0% Tactical HUD 0 Map Filters NONE Filters NONE Steam 1 RUN: 3796f3c9-b200-4f1d-ac54-fba485ef8438